[Event "4th Tamil Nadu Circuit-IM 2023"]
[Site "Pollachi"]
[Date "2023.11.06"]
[Round "1.1"]
[White "Gochelashvili, David"]
[Black "Abdyzhapar, Asylbek"]
[Result "1/2-1/2"]
[ECO "C89"]
[WhiteElo "2277"]
[BlackElo "2314"]
[Annotator "RC"]
[PlyCount "41"]
[EventDate "2023.10.23"]
[EventType "tourn"]
[EventCountry "IND"]
[SourceTitle "playchess.com"]
[Source "ChessBase"]
[SourceQuality "1"]
[TimeControl "5400+30"]

1. e4 {[%emt 0:00:05]} e5 {[%emt 0:00:16]} 2. Nf3 {[%emt 0:00:13]} Nc6 {[%emt 0:00:08]} 3. Bb5 {[%emt 0:00:23]} a6 {[%emt 0:00:04]} 4. Ba4 {[%emt 0:00:11]} Nf6 {[%emt 0:00:04]} 5. O-O {[%emt 0:00:38]} Be7 {[%emt 0:00:03]} 6. Re1 {[%emt 0:00:31]} b5 {[%emt 0:00:04]} 7. Bb3 {[%emt 0:00:09]} O-O {[%emt 0:00:23]} 8. c3 {[%emt 0:00:44]} d5 {[%emt 0:00:08]} 9. exd5 {[%emt 0:00:10]} Nxd5 {[%emt 0:00:04]} 10. Nxe5 {[%emt 0:00:08]} Nxe5 {[%emt 0:00:04]} 11. Rxe5 {[%emt 0:00:07]} c6 {[%emt 0:00:02]} 12. d4 {[%emt 0:03:58]} Bd6 {[%emt 0:02:03]} 13. Re2 {[%emt 0:01:02]} Bg4 {[%emt 0:01:59]} 14. f3 {[%emt 0:00:10]} Bf5 {[%emt 0:00:27]} 15. Nd2 {[%emt 0:03:04]} Nf4 {[%emt 0:03:09]} 16. Re1 {[%emt 0:02:11]} Nd3 {[%emt 0:08:59]} 17. Re2 {[%emt 0:00:57]} Nf4 {[%emt 0:00:06]} 18. Re1 {[%emt 0:00:20]} Nd3 {[%emt 0:00:06]} 19. Re2 {[%emt 0:00:24]} Nf4 {[%emt 0:00:05]} 20. Re1 {[%emt 0:00:18]} Nd3 {[%emt 0:00:04]} 21. Re2 {[%emt 0:00:06]} 1/2-1/2

[Event "4th Tamil Nadu Circuit-IM 2023"]
[Site "Pollachi"]
[Date "2023.11.06"]
[Round "1.2"]
[White "Sekar, B."]
[Black "Podolchenko, Evgeniy"]
[Result "0-1"]
[ECO "C02"]
[WhiteElo "2333"]
[BlackElo "2395"]
[Annotator "RC"]
[PlyCount "126"]
[EventDate "2023.10.23"]
[EventType "tourn"]
[EventCountry "IND"]
[SourceTitle "playchess.com"]
[Source "ChessBase"]
[SourceQuality "1"]
[TimeControl "5400+30"]

1. e4 {[%emt 0:00:03]} e6 {[%emt 0:00:07]} 2. d4 {[%emt 0:00:05]} d5 {[%emt 0:00:06]} 3. e5 {[%emt 0:00:40]} c5 {[%emt 0:00:06]} 4. c3 {[%emt 0:00:02]} Qb6 {[%emt 0:00:04]} 5. Nf3 {[%emt 0:01:23]} Nc6 {[%emt 0:00:06]} 6. a3 {[%emt 0:00:35]} Bd7 {[%emt 0:00:06]} 7. b4 {[%emt 0:06:39]} cxd4 {[%emt 0:00:28]} 8. cxd4 {[%emt 0:00:02]} Rc8 {[%emt 0:00:07]} 9. Be3 {[%emt 0:00:48]} Nh6 {[%emt 0:00:24]} 10. Bd3 {[%emt 0:00:50]} Ng4 {[%emt 0:00:05]} 11. Nbd2 {[%emt 0:00:08]} g6 {[%emt 0:00:41]} 12. O-O {[%emt 0:08:30]} Nxe3 {[%emt 0:00:09]} 13. fxe3 {[%emt 0:00:04]} Bh6 {[%emt 0:00:06]} 14. Qe2 {[%emt 0:00:16]} Ne7 {[%emt 0:00:17]} 15. g4 {[%emt 0:01:24]} Ba4 {[%emt 0:01:52]} 16. Rfc1 {[%emt 0:13:18]} O-O {[%emt 0:01:02]} 17. Nf1 {[%emt 0:03:20]} Rxc1 {[%emt 0:05:50]} 18. Rxc1 {[%emt 0:00:07]} Rc8 {[%emt 0:00:16]} 19. Qd2 {[%emt 0:07:12]} Rxc1 {[%emt 0:02:51]} 20. Qxc1 {[%emt 0:00:01]} Nc6 {[%emt 0:00:14]} 21. Qc5 {[%emt 0:13:04]} Qxc5 {[%emt 0:00:26]} 22. bxc5 {[%emt 0:00:05]} b6 {[%emt 0:00:18]} 23. cxb6 {[%emt 0:00:29]} axb6 {[%emt 0:00:02]} 24. N3d2 {[%emt 0:01:22]} Na5 {[%emt 0:05:23]} 25. Kf2 {[%emt 0:07:50]} Bf8 {[%emt 0:04:07]} 26. Nb1 {[%emt 0:00:05]} Nc4 {[%emt 0:14:06]} 27. Bxc4 {[%emt 0:04:29]} dxc4 {[%emt 0:00:03]} 28. Nfd2 {[%emt 0:03:12]} Bc2 {[%emt 0:04:27]} 29. Nc3 {[%emt 0:02:57]} Bd3 {[%emt 0:00:32]} 30. Nb5 {[%emt 0:03:28]} Be7 {[%emt 0:05:59]} 31. Kf3 {[%emt 0:09:50]} Bh4 {[%emt 0:06:44]} 32. Ne4 {[%emt 0:02:36]} Be1 {[%emt 0:02:16]} 33. Nec3 {[%emt 0:00:45]} Kf8 {[%emt 0:10:09]} 34. e4 {[%emt 0:02:44]} Ke7 {[%emt 0:02:34]} 35. Ke3 {[%emt 0:01:41]} h5 {[%emt 0:05:27]} 36. gxh5 {[%emt 0:00:26]} gxh5 {[%emt 0:00:02]} 37. Na4 {[%emt 0:01:39]} Bc2 {[%emt 0:07:09]} 38. Nxb6 {[%emt 0:02:34]} c3 {[%emt 0:00:09]} 39. Ke2 {[%emt 0:00:39]} Bd2 {[%emt 0:00:58]} 40. a4 {[%emt 0:02:49]} Bxe4 {[%emt 0:03:45]} 41. Nc4 {[%emt 0:00:22]} Bf3+ {[%emt 0:00:19]} 42. Kd3 {[%emt 0:00:11]} Bf4 {[%emt 0:00:16]} 43. h3 {[%emt 0:01:29]} Bg2 {[%emt 0:01:36]} 44. Nxc3 {[%emt 0:01:10]} Bxh3 {[%emt 0:00:58]} 45. a5 {[%emt 0:00:58]} Bg2 {[%emt 0:01:06]} 46. d5 {[%emt 0:00:35]} exd5 {[%emt 0:00:45]} 47. Nb6 {[%emt 0:00:29]} Bxe5 {[%emt 0:03:42]} 48. a6 {[%emt 0:00:10]} Bxc3 {[%emt 0:03:32]} 49. Kxc3 {[%emt 0:00:30]} h4 {[%emt 0:00:25]} 50. Kd4 {[%emt 0:00:19]} h3 {[%emt 0:00:06]} 51. a7 {[%emt 0:00:29]} h2 {[%emt 0:00:02]} 52. a8=Q {[%emt 0:00:20]} h1=Q {[%emt 0:00:04]} 53. Qa3+ {[%emt 0:00:46]} Ke6 {[%emt 0:02:56]} 54. Qe3+ {[%emt 0:00:12]} Kf5 {[%emt 0:00:21]} 55. Qe5+ {[%emt 0:01:04]} Kg6 {[%emt 0:00:36]} 56. Qg3+ {[%emt 0:00:15]} Kh7 {[%emt 0:00:23]} 57. Nd7 {[%emt 0:00:48]} Qd1+ {[%emt 0:04:48]} 58. Kc5 {[%emt 0:00:35]} Qc2+ {[%emt 0:00:05]} 59. Kd4 {[%emt 0:00:34]} Qa4+ {[%emt 0:03:50]} 60. Kc5 {[%emt 0:00:17]} Qxd7 {[%emt 0:00:14]} 61. Qxg2 {[%emt 0:00:04]} Qc7+ {[%emt 0:00:35]} 62. Kd4 {[%emt 0:00:15]} Qc4+ {[%emt 0:00:20]} 63. Ke5 {[%emt 0:00:16]} Qe4+ {[%emt 0:00:11]} 0-1

[Event "4th Tamil Nadu Circuit-IM 2023"]
[Site "Pollachi"]
[Date "2023.11.06"]
[Round "1.3"]
[White "Srihari L"]
[Black "Nandhidhaa, P V"]
[Result "0-1"]
[ECO "C11"]
[WhiteElo "2200"]
[BlackElo "2260"]
[Annotator "RC"]
[PlyCount "64"]
[EventDate "2023.10.23"]
[EventType "tourn"]
[EventCountry "IND"]
[SourceTitle "playchess.com"]
[Source "ChessBase"]
[SourceQuality "1"]
[TimeControl "5400+30"]

1. e4 {[%emt 0:00:02]} e6 {[%emt 0:00:11]} 2. d4 {[%emt 0:00:09]} d5 {[%emt 0:00:05]} 3. Nc3 {[%emt 0:00:10]} Nf6 {[%emt 0:00:05]} 4. e5 {[%emt 0:00:06]} Nfd7 {[%emt 0:00:05]} 5. Nce2 {[%emt 0:00:09]} c5 {[%emt 0:00:21]} 6. c3 {[%emt 0:00:03]} Nc6 {[%emt 0:00:15]} 7. f4 {[%emt 0:01:12]} Be7 {[%emt 0:00:54]} 8. Nf3 {[%emt 0:00:19]} O-O {[%emt 0:00:50]} 9. h4 {[%emt 0:01:30]} f6 {[%emt 0:01:00]} 10. Rh3 {[%emt 0:00:46]} b5 {[%emt 0:04:35]} 11. h5 {[%emt 0:02:22]} b4 {[%emt 0:05:43]} 12. g4 {[%emt 0:06:13]} a5 {[%emt 0:08:43]} 13. Ng3 {[%emt 0:11:03]} bxc3 {[%emt 0:03:23]} 14. bxc3 {[%emt 0:00:13]} cxd4 {[%emt 0:03:32]} 15. cxd4 {[%emt 0:00:06]} fxe5 {[%emt 0:03:39]} 16. dxe5 {[%emt 0:00:30]} Bb4+ {[%emt 0:03:35]} 17. Kf2 {[%emt 0:00:18]} Ndxe5 {[%emt 0:03:07]} 18. fxe5 {[%emt 0:03:52]} Nxe5 {[%emt 0:03:29]} 19. Ne2 {[%emt 0:04:00]} Qf6 {[%emt 0:08:29]} 20. Qb3 {[%emt 0:30:36]} Nxg4+ {[%emt 0:03:56]} 21. Kg2 {[%emt 0:02:54]} Qxa1 {[%emt 0:02:20]} 22. Rg3 {[%emt 0:00:12]} Ba6 {[%emt 0:04:22]} 23. Bb2 {[%emt 0:07:21]} Ne3+ {[%emt 0:02:14]} 24. Qxe3 {[%emt 0:00:15]} Qxb2 {[%emt 0:00:13]} 25. Qxe6+ {[%emt 0:03:15]} Kh8 {[%emt 0:00:38]} 26. h6 {[%emt 0:00:15]} Ra7 {[%emt 0:06:27]} 27. hxg7+ {[%emt 0:04:29]} Rxg7 {[%emt 0:00:12]} 28. Qxa6 {[%emt 0:00:12]} Rxg3+ {[%emt 0:00:14]} 29. Kxg3 {[%emt 0:00:12]} Qg7+ {[%emt 0:00:11]} 30. Kf2 {[%emt 0:00:29]} Bc5+ {[%emt 0:00:18]} 31. Ke1 {[%emt 0:00:07]} Qa1+ {[%emt 0:01:36]} 32. Kd2 {[%emt 0:00:01]} Qxa2+ {[%emt 0:01:01]} 0-1

[Event "4th Tamil Nadu Circuit-IM 2023"]
[Site "Pollachi"]
[Date "2023.11.06"]
[Round "1.4"]
[White "Laddha, Yash Jayesh"]
[Black "Laddha, Shubh Jayesh"]
[Result "1/2-1/2"]
[ECO "E04"]
[WhiteElo "2171"]
[BlackElo "2373"]
[Annotator "RC"]
[PlyCount "47"]
[EventDate "2023.10.23"]
[EventType "tourn"]
[EventCountry "IND"]
[SourceTitle "playchess.com"]
[Source "ChessBase"]
[SourceQuality "1"]
[TimeControl "5400+30"]

1. d4 {[%emt 0:00:02]} Nf6 {[%emt 0:00:06]} 2. Nf3 {[%emt 0:00:09]} d5 {[%emt 0:00:05]} 3. c4 {[%emt 0:00:05]} e6 {[%emt 0:01:34]} 4. g3 {[%emt 0:00:04]} dxc4 {[%emt 0:00:04]} 5. Bg2 {[%emt 0:00:03]} c5 {[%emt 0:00:04]} 6. Qa4+ {[%emt 0:02:03]} Bd7 {[%emt 0:01:24]} 7. Qxc4 {[%emt 0:00:05]} Nc6 {[%emt 0:05:53]} 8. Nc3 {[%emt 0:10:57]} cxd4 {[%emt 0:07:35]} 9. Nxd4 {[%emt 0:04:48]} Rc8 {[%emt 0:01:46]} 10. Nxc6 {[%emt 0:09:58]} Bxc6 {[%emt 0:00:11]} 11. Bxc6+ {[%emt 0:01:51]} Rxc6 {[%emt 0:00:37]} 12. Qb5 {[%emt 0:07:16]} Qa8 {[%emt 0:05:29]} 13. Bg5 {[%emt 0:08:37]} Be7 {[%emt 0:04:30]} 14. O-O {[%emt 0:04:54]} O-O {[%emt 0:03:38]} 15. Qd3 {[%emt 0:08:11]} Rd8 {[%emt 0:05:23]} 16. Qf3 {[%emt 0:00:12]} h6 {[%emt 0:03:59]} 17. Bf4 {[%emt 0:01:30]} a6 {[%emt 0:14:06]} 18. Rfd1 {[%emt 0:03:45]} Rxd1+ {[%emt 0:06:11]} 19. Rxd1 {[%emt 0:00:06]} Qc8 {[%emt 0:00:38]} 20. e4 {[%emt 0:06:47]} Bb4 {[%emt 0:03:59]} 21. Ne2 {[%emt 0:04:28]} Be7 {[%emt 0:05:31]} 22. Nc3 {[%emt 0:01:30]} Bb4 {[%emt 0:02:09]} 23. Ne2 {[%emt 0:00:33]} Be7 {[%emt 0:03:25]} 24. Nc3 {[%emt 0:03:51]} 1/2-1/2

[Event "4th Tamil Nadu Circuit-IM 2023"]
[Site "Pollachi"]
[Date "2023.11.06"]
[Round "1.5"]
[White "Shaik Sumer Arsh"]
[Black "Nawin J J"]
[Result "1-0"]
[ECO "E11"]
[WhiteElo "2273"]
[BlackElo "2305"]
[Annotator "RC"]
[PlyCount "90"]
[EventDate "2023.10.23"]
[EventType "tourn"]
[EventCountry "IND"]
[SourceTitle "playchess.com"]
[Source "ChessBase"]
[SourceQuality "1"]
[TimeControl "5400+30"]

1. d4 {[%emt 0:00:06]} Nf6 {[%emt 0:00:31]} 2. c4 {[%emt 0:00:12]} e6 {[%emt 0:00:15]} 3. Nf3 {[%emt 0:00:12]} Bb4+ {[%emt 0:00:22]} 4. Bd2 {[%emt 0:00:32]} a5 {[%emt 0:00:15]} 5. a3 {[%emt 0:00:00]} Bxd2+ {[%emt 0:00:11]} 6. Qxd2 {[%emt 0:00:07]} d6 {[%emt 0:00:20]} 7. Nc3 {[%emt 0:00:18]} Nbd7 {[%emt 0:00:29]} 8. e4 {[%emt 0:00:55]} e5 {[%emt 0:00:15]} 9. O-O-O {[%emt 0:04:23]} exd4 {[%emt 0:05:46]} 10. Nxd4 {[%emt 0:00:45]} O-O {[%emt 0:00:55]} 11. Bd3 {[%emt 0:04:16]} Nc5 {[%emt 0:01:29]} 12. Kb1 {[%emt 0:08:30]} Re8 {[%emt 0:00:24]} 13. f3 {[%emt 0:12:30]} Nfd7 {[%emt 0:02:42]} 14. Be2 {[%emt 0:07:25]} Nb6 {[%emt 0:07:47]} 15. h4 {[%emt 0:06:22]} c6 {[%emt 0:06:12]} 16. g4 {[%emt 0:02:04]} Qf6 {[%emt 0:25:22]} 17. Nf5 {[%emt 0:32:38]} Bxf5 {[%emt 0:11:26]} 18. gxf5 {[%emt 0:00:49]} Rad8 {[%emt 0:00:29]} 19. Qg5 {[%emt 0:02:02]} h6 {[%emt 0:13:26]} 20. Qxf6 {[%emt 0:02:37]} gxf6 {[%emt 0:00:09]} 21. Rhg1+ {[%emt 0:04:43]} Kf8 {[%emt 0:00:47]} 22. Rg2 {[%emt 0:02:05]} Ke7 {[%emt 0:01:36]} 23. Rg7 {[%emt 0:00:31]} Rg8 {[%emt 0:02:09]} 24. Rh7 {[%emt 0:04:29]} Rg2 {[%emt 0:02:02]} 25. f4 {[%emt 0:02:34]} Nca4 {[%emt 0:05:20]} 26. Nxa4 {[%emt 0:00:28]} Nxa4 {[%emt 0:00:06]} 27. Rd2 {[%emt 0:00:42]} Rdg8 {[%emt 0:00:57]} 28. Kc2 {[%emt 0:00:31]} R8g3 {[%emt 0:01:41]} 29. Bh5 {[%emt 0:00:49]} Rxd2+ {[%emt 0:00:39]} 30. Kxd2 {[%emt 0:00:01]} Nc5 {[%emt 0:01:18]} 31. Bxf7 {[%emt 0:01:04]} Rg2+ {[%emt 0:01:05]} 32. Ke3 {[%emt 0:00:52]} Rxb2 {[%emt 0:02:11]} 33. Bg6+ {[%emt 0:00:01]} Kd8 {[%emt 0:04:04]} 34. Rh8+ {[%emt 0:00:04]} Kc7 {[%emt 0:00:43]} 35. Rh7+ {[%emt 0:00:02]} Kb6 {[%emt 0:00:46]} 36. e5 {[%emt 0:01:13]} Rb3+ {[%emt 0:00:15]} 37. Ke2 {[%emt 0:00:34]} dxe5 {[%emt 0:00:07]} 38. fxe5 {[%emt 0:00:06]} fxe5 {[%emt 0:00:03]} 39. Re7 {[%emt 0:01:43]} e4 {[%emt 0:03:48]} 40. f6 {[%emt 0:00:35]} Rf3 {[%emt 0:01:24]} 41. f7 {[%emt 0:00:07]} Rf6 {[%emt 0:00:22]} 42. h5 {[%emt 0:00:19]} a4 {[%emt 0:00:47]} 43. Ke3 {[%emt 0:00:44]} Rf3+ {[%emt 0:00:16]} 44. Kd4 {[%emt 0:00:23]} Rd3+ {[%emt 0:00:43]} 45. Ke5 {[%emt 0:00:02]} Rd8 {[%emt 0:00:31]} 1-0

[Event "4th Tamil Nadu Circuit-IM 2023"]
[Site "Pollachi"]
[Date "2023.11.06"]
[Round "2.1"]
[White "Abdyzhapar, Asylbek"]
[Black "Nawin J J"]
[Result "1-0"]
[ECO "B90"]
[WhiteElo "2314"]
[BlackElo "2305"]
[Annotator "RC"]
[PlyCount "85"]
[EventDate "2023.10.23"]
[EventType "tourn"]
[EventCountry "IND"]
[SourceTitle "playchess.com"]
[Source "ChessBase"]
[SourceQuality "1"]
[TimeControl "5400+30"]

1. e4 {[%emt 0:02:48]} c5 {[%emt 0:00:16]} 2. Nf3 {[%emt 0:00:04]} d6 {[%emt 0:00:13]} 3. d4 {[%emt 0:00:04]} cxd4 {[%emt 0:00:08]} 4. Nxd4 {[%emt 0:00:03]} Nf6 {[%emt 0:00:07]} 5. Nc3 {[%emt 0:00:03]} a6 {[%emt 0:00:07]} 6. Nb3 {[%emt 0:00:04]} Qc7 {[%emt 0:01:10]} 7. Nd5 {[%emt 0:02:26]} Nxd5 {[%emt 0:00:11]} 8. exd5 {[%emt 0:00:05]} Nd7 {[%emt 0:01:59]} 9. Be2 {[%emt 0:01:11]} g6 {[%emt 0:01:01]} 10. Be3 {[%emt 0:04:27]} Bg7 {[%emt 0:00:21]} 11. Bd4 {[%emt 0:00:06]} Nf6 {[%emt 0:00:25]} 12. g4 {[%emt 0:00:24]} h6 {[%emt 0:03:46]} 13. h4 {[%emt 0:00:36]} e5 {[%emt 0:08:15]} 14. dxe6 {[%emt 0:03:12]} Bxe6 {[%emt 0:00:15]} 15. Qd3 {[%emt 0:02:50]} Rc8 {[%emt 0:06:22]} 16. c3 {[%emt 0:04:07]} O-O {[%emt 0:00:15]} 17. g5 {[%emt 0:03:54]} Bf5 {[%emt 0:00:16]} 18. Qf3 {[%emt 0:03:20]} Bg4 {[%emt 0:13:23]} 19. Qf4 {[%emt 0:03:22]} Rfe8 {[%emt 0:01:25]} 20. f3 {[%emt 0:32:26]} Nd5 {[%emt 0:31:07]} 21. Qxg4 {[%emt 0:00:00]} h5 {[%emt 0:00:07]} 22. Qg1 {[%emt 0:00:00]} Nf4 {[%emt 0:12:33]} 23. Rh2 {[%emt 0:00:00]} Qc4 {[%emt 0:01:29]} 24. Nc1 {[%emt 0:00:00]} Rxe2+ {[%emt 0:06:53]} 25. Rxe2 {[%emt 0:04:15]} Nxe2 {[%emt 0:00:16]} 26. Nxe2 {[%emt 0:00:09]} Re8 {[%emt 0:00:04]} 27. Qf2 {[%emt 0:08:19]} Bxd4 {[%emt 0:00:08]} 28. cxd4 {[%emt 0:00:06]} Qb4+ {[%emt 0:00:09]} 29. Kf1 {[%emt 0:00:13]} Qxb2 {[%emt 0:00:05]} 30. Rd1 {[%emt 0:05:38]} Qxa2 {[%emt 0:00:19]} 31. Nf4 {[%emt 0:00:37]} Qc4+ {[%emt 0:01:39]} 32. Kg2 {[%emt 0:00:21]} b5 {[%emt 0:02:29]} 33. Qd2 {[%emt 0:01:41]} b4 {[%emt 0:02:15]} 34. Rc1 {[%emt 0:02:57]} Qb5 {[%emt 0:00:58]} 35. Qd3 {[%emt 0:00:10]} Qxd3 {[%emt 0:01:44]} 36. Nxd3 {[%emt 0:00:04]} Re2+ {[%emt 0:02:56]} 37. Kg3 {[%emt 0:00:09]} a5 {[%emt 0:01:47]} 38. Rc8+ {[%emt 0:00:50]} Kg7 {[%emt 0:00:06]} 39. Nf4 {[%emt 0:01:37]} Rd2 {[%emt 0:00:09]} 40. Nd5 {[%emt 0:00:10]} f5 {[%emt 0:00:04]} 41. gxf6+ {[%emt 0:00:04]} Kf7 {[%emt 0:00:03]} 42. Rc7+ {[%emt 0:00:06]} Kf8 {[%emt 0:00:11]} 43. Nf4 {[%emt 0:00:06]} 1-0

[Event "4th Tamil Nadu Circuit-IM 2023"]
[Site "Pollachi"]
[Date "2023.11.06"]
[Round "2.2"]
[White "Laddha, Shubh Jayesh"]
[Black "Shaik Sumer Arsh"]
[Result "1/2-1/2"]
[ECO "C18"]
[WhiteElo "2373"]
[BlackElo "2273"]
[Annotator "RC"]
[PlyCount "67"]
[EventDate "2023.10.23"]
[EventType "tourn"]
[EventCountry "IND"]
[SourceTitle "playchess.com"]
[Source "ChessBase"]
[SourceQuality "1"]
[TimeControl "5400+30"]

1. e4 {[%emt 0:00:02]} e6 {[%emt 0:00:09]} 2. d4 {[%emt 0:00:05]} d5 {[%emt 0:00:04]} 3. Nc3 {[%emt 0:00:04]} Bb4 {[%emt 0:00:09]} 4. e5 {[%emt 0:00:06]} c5 {[%emt 0:00:07]} 5. a3 {[%emt 0:00:03]} Bxc3+ {[%emt 0:00:06]} 6. bxc3 {[%emt 0:00:03]} Ne7 {[%emt 0:00:18]} 7. Qg4 {[%emt 0:00:15]} Qc7 {[%emt 0:00:06]} 8. Qxg7 {[%emt 0:00:10]} Rg8 {[%emt 0:00:06]} 9. Qxh7 {[%emt 0:00:03]} cxd4 {[%emt 0:00:14]} 10. Ne2 {[%emt 0:00:10]} dxc3 {[%emt 0:00:21]} 11. f4 {[%emt 0:02:06]} Nbc6 {[%emt 0:00:13]} 12. h4 {[%emt 0:00:45]} Bd7 {[%emt 0:00:16]} 13. h5 {[%emt 0:00:06]} O-O-O {[%emt 0:00:25]} 14. Qd3 {[%emt 0:00:24]} d4 {[%emt 0:00:17]} 15. h6 {[%emt 0:02:20]} Rg6 {[%emt 0:00:07]} 16. h7 {[%emt 0:01:29]} Rh8 {[%emt 0:00:07]} 17. Nxd4 {[%emt 0:02:15]} Nxd4 {[%emt 0:00:07]} 18. Qxd4 {[%emt 0:00:02]} Bc6 {[%emt 0:00:16]} 19. Rh2 {[%emt 0:13:06]} Rg7 {[%emt 0:00:10]} 20. Qxc3 {[%emt 0:16:36]} Nf5 {[%emt 0:10:56]} 21. Bd2 {[%emt 0:07:16]} Be4 {[%emt 0:41:27]} 22. Qxc7+ {[%emt 0:28:51]} Kxc7 {[%emt 0:00:06]} 23. Kf2 {[%emt 0:00:51]} Rhxh7 {[%emt 0:15:34]} 24. Rxh7 {[%emt 0:00:15]} Rxh7 {[%emt 0:00:01]} 25. Re1 {[%emt 0:02:42]} Bc6 {[%emt 0:01:49]} 26. Bd3 {[%emt 0:02:42]} Rg7 {[%emt 0:01:33]} 27. Be4 {[%emt 0:04:28]} Rg3 {[%emt 0:06:10]} 28. Bb4 {[%emt 0:08:08]} b6 {[%emt 0:06:35]} 29. Re2 {[%emt 0:05:51]} a5 {[%emt 0:02:03]} 30. Bd6+ {[%emt 0:02:17]} Kb7 {[%emt 0:00:14]} 31. Bxf5 {[%emt 0:01:22]} Rxg2+ {[%emt 0:00:09]} 32. Kf1 {[%emt 0:00:15]} Rxe2 {[%emt 0:00:12]} 33. Kxe2 {[%emt 0:00:18]} exf5 {[%emt 0:00:06]} 34. c3 {[%emt 0:00:13]} 1/2-1/2

[Event "4th Tamil Nadu Circuit-IM 2023"]
[Site "Pollachi"]
[Date "2023.11.06"]
[Round "2.3"]
[White "Nandhidhaa, P V"]
[Black "Laddha, Yash Jayesh"]
[Result "1-0"]
[ECO "D02"]
[WhiteElo "2260"]
[BlackElo "2171"]
[Annotator "RC"]
[PlyCount "93"]
[EventDate "2023.10.23"]
[EventType "tourn"]
[EventCountry "IND"]
[SourceTitle "playchess.com"]
[Source "ChessBase"]
[SourceQuality "1"]
[TimeControl "5400+30"]

1. d4 {[%emt 0:00:04]} d5 {[%emt 0:00:06]} 2. Nf3 {[%emt 0:00:30]} Nf6 {[%emt 0:00:09]} 3. Bf4 {[%emt 0:00:10]} c5 {[%emt 0:00:08]} 4. e3 {[%emt 0:00:41]} Nc6 {[%emt 0:00:38]} 5. c3 {[%emt 0:00:25]} e6 {[%emt 0:00:04]} 6. Nbd2 {[%emt 0:00:14]} Bd6 {[%emt 0:00:07]} 7. Bg3 {[%emt 0:00:10]} O-O {[%emt 0:00:06]} 8. Bd3 {[%emt 0:00:41]} b6 {[%emt 0:00:05]} 9. e4 {[%emt 0:00:29]} Be7 {[%emt 0:00:04]} 10. e5 {[%emt 0:00:20]} Nh5 {[%emt 0:00:04]} 11. Ng5 {[%emt 0:00:24]} Bxg5 {[%emt 0:00:05]} 12. Qxh5 {[%emt 0:00:08]} g6 {[%emt 0:00:03]} 13. Qe2 {[%emt 0:00:09]} cxd4 {[%emt 0:00:04]} 14. h4 {[%emt 0:00:13]} Be7 {[%emt 0:00:08]} 15. h5 {[%emt 0:00:12]} dxc3 {[%emt 0:00:05]} 16. bxc3 {[%emt 0:00:05]} d4 {[%emt 0:00:04]} 17. c4 {[%emt 0:00:19]} Nb4 {[%emt 0:00:11]} 18. Be4 {[%emt 0:00:16]} d3 {[%emt 0:00:07]} 19. Qg4 {[%emt 0:00:40]} g5 {[%emt 0:00:06]} 20. O-O {[%emt 0:00:48]} Rb8 {[%emt 0:00:08]} 21. h6 {[%emt 0:01:00]} Kh8 {[%emt 0:00:07]} 22. a3 {[%emt 0:00:37]} Na6 {[%emt 0:00:06]} 23. Nb3 {[%emt 0:04:15]} Bb7 {[%emt 0:04:52]} 24. Rad1 {[%emt 0:07:55]} Bxe4 {[%emt 0:01:46]} 25. Qxe4 {[%emt 0:00:53]} Qc7 {[%emt 0:00:14]} 26. Rxd3 {[%emt 0:03:21]} Nc5 {[%emt 0:00:10]} 27. Nxc5 {[%emt 0:00:31]} Qxc5 {[%emt 0:02:17]} 28. Rfd1 {[%emt 0:09:46]} Rbd8 {[%emt 0:14:43]} 29. Qb7 {[%emt 0:07:06]} Kg8 {[%emt 0:24:16]} 30. Rxd8 {[%emt 0:08:40]} Bxd8 {[%emt 0:01:05]} 31. Qxa7 {[%emt 0:04:10]} Be7 {[%emt 0:18:45]} 32. Rd7 {[%emt 0:06:54]} Re8 {[%emt 0:01:33]} 33. a4 {[%emt 0:01:36]} Qb4 {[%emt 0:07:23]} 34. Kh2 {[%emt 0:02:32]} Kf8 {[%emt 0:01:34]} 35. Qa6 {[%emt 0:15:58]} Qb1 {[%emt 0:07:09]} 36. Qb5 {[%emt 0:02:06]} Qg6 {[%emt 0:06:31]} 37. Qxb6 {[%emt 0:00:09]} Qxh6+ {[%emt 0:00:04]} 38. Kg1 {[%emt 0:00:06]} g4 {[%emt 0:01:13]} 39. Qb1 {[%emt 0:02:50]} Qg7 {[%emt 0:05:59]} 40. a5 {[%emt 0:05:04]} h5 {[%emt 0:01:52]} 41. a6 {[%emt 0:01:46]} h4 {[%emt 0:00:28]} 42. Rxe7 {[%emt 0:04:37]} Rxe7 {[%emt 0:01:39]} 43. Bxh4 {[%emt 0:03:51]} Re8 {[%emt 0:00:12]} 44. Qb4+ {[%emt 0:04:11]} Kg8 {[%emt 0:00:05]} 45. Qb5 {[%emt 0:01:38]} Kf8 {[%emt 0:02:24]} 46. a7 {[%emt 0:01:00]} Qh6 {[%emt 0:00:36]} 47. Qxe8+ {[%emt 0:00:21]} 1-0